bitfinex/quotes_ETHUSD_20220201
["timestamp","ask_amount","ask_price","bid_price","bid_amount"]
[1643730396791,2.01984,2745.7,2745.2,1.34562]
[1643730397091,2.01984,2745.7,2745.2,1.52787]
[1643730397290,0.35714086,2745.6,2745.2,1.52787]
[1643730397592,0.35714086,2745.6,2745.2,0.91062]
[1643730397792,0.35714086,2745.6,2745.0,0.22139141]
[1643730399390,0.35714086,2745.6,2745.0,0.92841012]
[1643730399792,0.35714086,2745.6,2745.0,0.22139141]
[1643730400051,0.35714086,2745.6,2745.0,0.03914141]
[1643730400252,0.4321439,2746.8,2745.6,7.742]
[1643730400455,1.53602997,2746.7,2746.5,0.0127671]
[1643730400658,1.53602997,2746.7,2745.8,1.092]
[1643730400659,0.74765944,2747.6,2746.2,0.61725]
[1643730400853,1.82038,2747.4,2746.4,1.092]
[1643730401058,1.40375976,2747.3,2746.5,0.10815502]
[1643730401254,0.7875347,2746.8,2746.5,0.10815502]
[1643730401451,0.3606997,2746.7,2746.5,0.10815502]
[1643730401655,0.3606997,2746.7,2746.4,1.092]
[1643730401656,1.53574872,2746.6,2746.4,1.092]
[1643730402054,0.3606997,2746.7,2746.1,0.91041]
[1643730402256,1.53586494,2746.6,2745.5,7.3689]
[1643730402452,1.53586494,2746.6,2745.5,0.68234866]
[1643730402453,0.32898831,2745.6,2745.5,0.68234866]
[1643730402657,0.32898831,2745.6,2745.5,0.91054]
[1643730403053,4.31140126,2746.6,2745.5,0.91054]
[1643730403054,4.2781,2746.6,2745.5,0.91054]
[1643730403255,1.53588277,2746.5,2745.7,0.99999999]
[1643730403455,0.68014466,2747.2,2746.2,0.7490756]
[1643730403456,3.6467,2747.2,2746.2,0.7490756]
[1643730403738,1.53554902,2747.1,2746.4,0.7490756]
[1643730403919,1.53554902,2747.1,2746.7,0.7490756]
[1643730404327,0.33682146,2746.9,2746.7,0.7490756]
[1643730404529,1.53554902,2746.8,2746.7,0.7490756]
[1643730405126,0.33682146,2746.9,2746.7,0.7490756]
[1643730405539,1.82747644,2747.6,2746.8,0.18225]
[1643730405732,1.5353075,2747.5,2747.0,0.7490756]
[1643730405928,1.5353075,2747.4,2747.1,1.1840756]
[1643730406129,0.68014466,2748.1,2747.1,1.1840756]
[1643730406338,1.53516568,2748.0,2747.1,1.3663256]
[1643730406529,1.53516568,2747.9,2747.3,0.7490756]
[1643730406729,1.53516568,2747.8,2747.5,0.7490756]
[1643730406928,1.53516568,2747.7,2747.5,1.1840756]
[1643730407128,0.35217758,2747.9,2747.5,1.1840756]
[1643730407337,1.38615631,2747.8,2747.5,1.1840756]
[1643730407749,1.68615631,2747.8,2747.5,1.1840756]
[1643730407947,0.3,2747.8,2747.5,1.1840756]
[1643730408357,1.75892553,2748.6,2747.7,0.94406889]
[1643730408552,1.35030766,2748.5,2747.9,0.7490756]
[1643730408753,0.6800275,2749.0,2748.1,0.7490756]
[1643730408754,1.35030766,2748.4,2748.1,0.7490756]
[1643730409055,0.00289739,2749.3,2748.3,0.7490756]
[1643730409056,0.91244739,2749.3,2748.3,0.7490756]
[1643730409252,1.30502803,2749.2,2748.3,1.1840756]
[1643730409450,0.44764816,2749.1,2748.3,1.1840756]
[1643730409652,1.30502803,2749.0,2748.4,1.092]
[1643730410250,0.33114282,2748.5,2748.4,1.092]
[1643730411053,0.90964,2748.9,2748.4,1.092]
[1643730411296,0.90955,2749.3,2748.9,1.092]
[1643730411495,1.27195123,2749.2,2748.9,1.092]
[1643730411700,1.26225257,2749.2,2748.9,1.092]
[1643730412096,0.37838524,2749.1,2748.9,1.092]
[1643730414101,0.67838524,2749.1,2748.9,1.092]
[1643730415745,0.37838524,2749.1,2748.9,1.092]
[1643730415944,3.77912596,2749.9,2748.9,1.092]
[1643730415945,0.90946,2749.5,2748.9,1.092]
[1643730416148,1.34190757,2750.1,2748.9,1.092]
[1643730416149,7.74642191,2750.3,2749.1,1.092]
[1643730416344,6.8432,2750.3,2749.8,1.092]
[1643730416542,3.833,2750.3,2749.8,1.092]
[1643730416944,0.41799539,2750.2,2749.8,1.092]
[1643730420394,0.90929,2750.3,2749.8,1.092]
[1643730420601,3.57709553,2751.0,2750.0,1.092]
[1643730420796,1.81817,2751.0,2750.2,1.092]
[1643730420995,1.81817,2751.0,2750.3,0.435]
[1643730421201,1.81817,2751.0,2750.4,1.092]
[1643730421400,0.43440896,2750.9,2750.7,1.092]
[1643730421601,0.43440896,2750.9,2750.3,0.435]
[1643730421602,0.43440896,2750.9,2750.8,0.1984]
[1643730422437,1.81817,2751.0,2750.8,0.1984]
[1643730423442,0.44892424,2750.9,2750.8,0.1984]
[1643730424850,0.74892424,2750.9,2750.8,0.1984]
[1643730425044,0.3,2750.9,2750.8,0.1984]
[1643730426301,1.81817,2751.0,2750.8,0.1984]
[1643730426502,1.81817,2751.0,2750.0,0.1984]
[1643730426704,1.88575478,2751.1,2750.0,0.1984]
[1643730426705,0.9061193,2751.8,2750.8,6.66292568]
[1643730426916,2.14012396,2752.2,2750.8,6.66292568]
[1643730426917,9.09161,2752.4,2750.8,6.66292568]
[1643730426918,1.78574609,2751.9,2751.3,0.01290082]
[1643730427150,2.86047729,2752.8,2751.4,1.22611997]
[1643730427151,0.1817,2752.8,2751.4,1.22611997]
[1643730427306,1.51856972,2753.1,2751.4,1.22611997]
[1643730427307,6.62003367,2753.1,2751.4,2.42451997]
[1643730427514,0.89553367,2753.4,2751.6,5.0]
[1643730427707,0.1816,2753.7,2752.0,0.02287989]
[1643730427909,4.80293367,2753.9,2752.6,0.01290309]
[1643730428109,3.9074,2753.9,2753.1,0.85291782]
[1643730428311,0.36495281,2753.9,2753.2,0.1984]
[1643730428713,6.65,2753.8,2752.7,0.435]
[1643730428911,6.65,2753.8,2751.6,2.09428232]
[1643730428912,7.65,2753.8,2751.6,2.09428232]
[1643730429209,0.01244557,2753.1,2752.0,0.435]
[1643730429609,0.01244557,2753.1,2751.6,2.27653232]
[1643730429610,0.42665603,2752.2,2751.6,2.07628434]
[1643730429808,0.42665603,2752.2,2751.7,1.1884806]
[1643730431444,0.42665603,2752.2,2751.7,0.435]
[1643730432446,0.42665603,2752.2,2751.5,0.54201565]
[1643730432651,0.42665603,2752.2,2751.3,0.435]
[1643730433246,0.42665603,2752.2,2751.2,0.13819997]
[1643730433445,0.42665603,2752.2,2751.3,0.76462495]
[1643730433719,0.90866,2752.4,2751.3,0.76462495]
[1643730433912,2.10094714,2752.8,2751.4,0.435]
[1643730433913,3.00949714,2752.8,2751.4,0.435]
[1643730434110,2.10094714,2752.7,2751.4,0.435]
[1643730434307,2.40094714,2752.7,2751.4,0.435]
[1643730434512,4.21828714,2752.7,2751.4,0.435]
[1643730434708,2.11734,2752.7,2751.8,0.69083931]
[1643730434910,2.11734,2752.7,2751.4,0.435]
[1643730434911,0.01211695,2752.5,2751.4,0.435]
[1643730435111,0.33171237,2751.5,2751.4,0.435]
[1643730435315,0.28171237,2751.5,2751.4,0.435]
[1643730435711,0.01211695,2752.5,2751.4,0.435]
[1643730435910,3.36272251,2752.7,2751.6,0.74488211]
[1643730436110,3.36272251,2752.7,2751.2,0.13819997]
[1643730436111,0.85864,2752.7,2751.3,0.01201249]
[1643730436311,0.3,2752.6,2751.3,0.01201249]
[1643730436510,0.3,2752.6,2751.2,0.13819997]
[1643730436710,2.40094714,2752.6,2751.2,0.13819997]
[1643730436910,0.3,2752.6,2751.2,0.13819997]
[1643730437111,0.3,2752.6,2751.5,0.94711537]
[1643730437551,0.44609056,2752.5,2751.2,0.13819997]
[1643730438650,0.44609056,2752.5,2751.2,1.00743524]
[1643730438855,0.44609056,2752.5,2751.1,0.435]
[1643730438856,0.90873,2752.2,2751.1,0.435]
[1643730439056,0.90873,2752.2,2750.2,1.69649283]
[1643730439057,4.0146934,2752.1,2750.2,1.69649283]
[1643730439255,0.01277284,2751.9,2749.9,5.90578]
[1643730439453,0.02063153,2751.9,2749.9,0.18148]
[1643730439654,0.18159,2751.8,2749.9,0.18148]
[1643730439857,8.1171,2752.2,2749.9,0.18148]
[1643730439858,1.0,2752.8,2751.9,1.092]
[1643730440057,0.3916,2753.8,2752.4,0.01224159]
[1643730440058,1.1817,2753.6,2752.4,0.01224159]
[1643730440257,1.08256,2753.6,2752.4,0.01224159]
[1643730440853,1.08256,2753.6,2752.4,1.10424159]
[1643730441053,0.42542235,2753.5,2752.4,1.092]
[1643730441893,0.42542235,2753.5,2752.5,0.1816]
[1643730441894,1.0,2753.3,2752.5,0.1816]
[1643730442102,6.6894607,2753.4,2752.4,1.0448315]
[1643730442293,1.12659753,2753.3,2752.5,0.1816]
[1643730442494,1.13067115,2753.3,2752.5,0.1816]
[1643730442695,23.67799856,2753.3,2752.5,0.1816]
[1643730442900,0.78372855,2753.0,2752.5,0.1816]
[1643730443100,1.08372855,2753.0,2752.5,0.1816]
[1643730443397,0.36405057,2752.9,2752.5,0.1816]
[1643730444801,0.36405057,2752.9,2752.5,1.2264315]
[1643730445248,0.66405057,2752.9,2752.5,1.2264315]
[1643730445860,1.80401367,2754.1,2752.5,1.2264315]
[1643730445861,0.3916,2753.8,2752.7,1.0448315]
[1643730446151,0.3916,2753.8,2752.9,1.05984712]
[1643730446352,0.3916,2753.8,2753.1,1.0448315]
[1643730446552,0.3916,2753.8,2753.1,1.4798315]
[1643730446752,0.39335755,2753.7,2753.5,1.0448315]
[1643730446953,0.39335755,2753.7,2753.5,1.4798315]
[1643730447355,0.39335755,2753.7,2753.5,1.0448315]
[1643730447559,4.8,2753.5,2752.5,0.435]
[1643730447754,4.8,2753.5,2751.5,0.55712857]
[1643730447755,1.12902698,2753.4,2752.6,0.1816]
[1643730447956,4.8,2753.5,2752.6,0.1816]
[1643730448159,5.1,2753.5,2752.0,0.1816]
[1643730448355,0.43838219,2753.4,2752.3,0.86046266]
[1643730448555,1.23664293,2753.5,2752.4,0.1816]
[1643730448788,0.40984125,2753.4,2752.4,0.1816]
[1643730449593,0.3916,2753.8,2752.5,0.61648]
[1643730449796,1.204,2754.3,2752.6,0.1816]
[1643730449995,3.37178645,2754.2,2752.7,0.435]
[1643730450194,1.85552143,2754.1,2752.9,0.72630656]
[1643730450396,1.11389676,2754.0,2753.0,0.1814]
[1643730450596,0.33535457,2753.9,2753.0,0.1814]
[1643730450805,3.45499381,2753.8,2753.0,0.1814]
[1643730451196,1.11389676,2753.7,2753.0,0.1814]
[1643730451597,0.33535457,2753.9,2753.0,0.1814]
[1643730451796,1.11593585,2753.8,2753.0,0.1814]
[1643730451997,2.33056392,2753.7,2753.0,0.1814]
[1643730452199,2.30523889,2753.7,2753.0,0.1814]
[1643730452444,0.3,2753.7,2753.0,0.1814]
[1643730452646,1.20834,2753.7,2753.0,0.1814]
[1643730453046,0.90599879,2753.6,2753.0,0.1814]
[1643730453448,1.20834,2753.7,2753.0,0.1814]
[1643730454352,0.33535457,2753.9,2753.0,0.1814]
[1643730454554,0.33535457,2753.9,2752.5,0.13819997]
[1643730454555,0.33535457,2753.9,2752.6,0.18697231]
[1643730454749,0.33535457,2753.9,2752.7,0.435]
[1643730454951,0.33535457,2753.9,2752.8,0.1816]
[1643730455153,0.32805906,2753.2,2753.1,0.72715836]
[1643730456592,0.32805906,2753.2,2752.7,0.435]
[1643730456792,0.32805906,2753.2,2752.8,0.1816]
[1643730457293,0.32805906,2753.2,2752.6,0.1816]
[1643730457893,0.66696297,2753.9,2752.6,1.08953187]
[1643730458102,1.20689204,2754.3,2752.7,2.8724464]
[1643730458103,1.87096297,2754.3,2752.7,2.8724464]
[1643730458292,0.66696297,2754.4,2752.9,0.02036566]
[1643730458498,0.66696297,2754.5,2753.0,0.6164]
[1643730458894,0.66696297,2754.4,2753.0,0.6164]
[1643730459193,0.78968846,2754.1,2753.0,0.6164]
[1643730459595,0.96925288,2754.4,2753.0,0.6164]
[1643730459796,0.3,2754.3,2753.0,0.6164]
[1643730460045,0.60228991,2754.4,2753.0,0.6164]
[1643730460449,0.66696297,2754.3,2753.0,0.6164]
[1643730460650,0.6952772,2753.9,2753.0,0.6164]
[1643730460853,0.6952772,2753.9,2753.0,0.1814]
[1643730461049,0.9952772,2753.9,2753.0,0.1814]
[1643730461452,1.66224017,2753.9,2753.0,0.1814]
[1643730461653,0.66696297,2754.2,2753.0,0.1814]
[1643730461853,2.37999786,2754.4,2753.0,0.1814]
[1643730461854,0.38187977,2753.8,2753.0,0.1814]
[1643730462655,0.38187977,2753.8,2753.4,0.94274177]
[1643730462853,0.38187977,2753.8,2753.5,0.6164]
[1643730463253,0.38187977,2753.8,2753.5,0.1814]
[1643730463689,0.38187977,2753.8,2753.2,0.1814]
[1643730464894,0.38187977,2753.8,2753.3,0.18148]
[1643730465099,0.38187977,2753.8,2753.4,0.1814]
[1643730465295,0.38187977,2753.8,2753.5,0.435]
[1643730465494,0.38187977,2753.8,2753.6,0.1814]
[1643730466699,0.93756541,2753.7,2753.6,0.1814]
[1643730466901,0.93756541,2753.7,2752.5,2.86431637]
[1643730466902,0.93756541,2753.7,2752.5,0.13819997]
[1643730467101,1.60937508,2753.7,2752.5,0.13819997]
[1643730467299,0.94241211,2753.7,2752.5,0.13819997]
[1643730467565,0.93756541,2753.7,2752.5,0.13819997]
[1643730467967,0.93756541,2753.7,2752.5,0.94917161]
[1643730468165,0.93756541,2753.7,2752.6,0.18148]
[1643730468469,0.93756541,2753.7,2752.6,2.53230933]
[1643730468667,0.93756541,2753.7,2752.6,0.18148]
[1643730468865,0.93756541,2753.7,2752.7,1.0]
[1643730469069,0.93756541,2753.7,2752.6,0.18148]
[1643730470967,0.66696297,2753.8,2752.7,0.3165]
[1643730471213,0.66696297,2754.4,2753.1,0.01294568]
[1643730471406,0.66696297,2754.5,2753.2,0.61648]
[1643730471610,0.66696297,2754.5,2753.2,0.91648]
[1643730472009,0.66696297,2754.6,2753.2,1.00667283]
[1643730472206,0.33486539,2753.4,2753.2,1.00667283]
[1643730472406,0.14895608,2753.4,2753.2,1.00667283]
[1643730472706,0.14895608,2753.4,2753.3,5.28148]
[1643730472707,0.14617716,2753.4,2753.3,5.28148]
[1643730472905,0.14617716,2753.4,2753.3,5.71648]
[1643730473107,0.66985501,2754.7,2753.3,6.7233921]
[1643730473308,0.66696297,2754.6,2753.4,3.57166996]
[1643730473506,0.66696297,2754.6,2753.5,0.61648]
[1643730473709,0.66696297,2754.6,2753.5,2.92673064]
[1643730473909,0.66696297,2754.6,2753.5,2.94852867]
[1643730474111,1.34506364,2754.5,2753.6,1.0]
[1643730474308,1.09912129,2754.4,2753.5,0.61648]
[1643730476148,3.93208874,2754.4,2753.5,0.435]
[1643730476352,0.66696297,2754.1,2752.8,0.435]
[1643730476549,0.66696297,2754.0,2752.8,0.435]
[1643730476751,0.66696297,2754.0,2752.8,1.30429236]
[1643730476947,1.76608426,2754.0,2752.8,0.86929236]
[1643730477147,0.44693855,2753.9,2752.8,0.86929236]
[1643730477347,0.36795921,2752.9,2752.8,0.86929236]
[1643730477549,2.04804428,2754.0,2752.8,1.05077236]
[1643730477747,1.09917283,2753.9,2752.8,1.05077236]
[1643730477948,1.09917283,2753.8,2752.8,1.05077236]
[1643730478150,1.09917283,2753.7,2752.8,1.05077236]
[1643730478350,1.09917283,2753.6,2752.8,1.05077236]
[1643730478549,1.45296805,2753.5,2752.8,0.18148]
[1643730478799,1.09917283,2753.4,2752.6,6.343]
[1643730479201,1.09917283,2753.4,2752.7,0.18148]
[1643730479406,0.35379522,2753.5,2752.7,0.18148]
[1643730479603,0.35379522,2753.5,2752.8,0.41402605]
[1643730479802,0.35379522,2753.5,2752.9,0.88346268]
[1643730480002,0.35379522,2753.5,2752.9,1.06494268]
[1643730480205,4.59116297,2754.3,2752.9,1.06494268]
[1643730480206,4.59116297,2754.3,2753.0,0.435]
[1643730480403,1.09945466,2754.2,2753.0,0.435]
[1643730480605,2.13550222,2754.1,2753.0,0.435]
[1643730480806,2.13550222,2754.1,2752.3,1.6429]
[1643730480807,0.66696297,2753.7,2752.3,1.6429]
[1643730481008,2.90316833,2754.0,2752.2,0.54521184]
[1643730481009,2.94654247,2753.6,2752.2,0.54521184]
[1643730481205,2.1130039,2753.5,2752.2,0.54521184]
[1643730481407,3.27891861,2753.4,2752.2,0.72669184]
[1643730481606,1.09945466,2753.3,2752.3,0.41434989]
[1643730482009,1.09945466,2753.2,2752.3,0.41434989]
[1643730482207,1.09945466,2753.1,2752.3,0.41434989]
[1643730482441,2.18238065,2753.4,2752.3,0.41434989]
[1643730482645,1.10083882,2753.3,2752.3,0.41434989]
[1643730482847,1.7902781,2753.2,2752.3,0.41434989]
[1643730483048,1.10083882,2753.1,2752.3,0.41434989]
[1643730483249,0.36614103,2753.0,2752.3,0.41434989]
[1643730483448,1.10149289,2752.9,2752.3,0.41434989]
[1643730483646,1.10149289,2752.9,2752.1,0.41434989]
[1643730484953,1.10149289,2752.9,2752.2,0.18148]
[1643730485155,6.5168,2753.6,2752.3,0.42063825]
[1643730485352,1.10182428,2753.5,2752.4,3.45876147]
[1643730485553,1.10182428,2753.4,2752.5,0.84934989]
[1643730485754,1.1848,2753.8,2752.6,0.41434989]
[1643730485755,1.10182428,2753.3,2752.6,0.41434989]
[1643730485951,1.41923274,2753.2,2752.6,0.41434989]
[1643730486196,0.31740846,2753.2,2752.7,0.84934989]
[1643730486496,3.0069,2754.2,2752.7,0.84934989]
[1643730486497,0.00289204,2754.3,2752.9,6.65]
[1643730486695,0.00289204,2754.3,2753.0,4.15931454]
[1643730486896,0.66696297,2754.4,2753.1,0.84934989]
[1643730487094,0.66696297,2754.4,2753.2,0.59582989]
[1643730487299,0.92465523,2754.2,2753.3,0.84934989]
[1643730487599,1.46661238,2754.1,2753.3,0.435]
[1643730487795,1.08336413,2754.0,2753.3,0.435]
[1643730487996,1.08336413,2754.0,2752.8,0.18148]
[1643730488197,1.08336413,2753.9,2752.9,0.41578377]
[1643730488396,0.38324825,2754.1,2752.9,0.41578377]
[1643730488397,1.08336413,2753.8,2752.9,0.41578377]
[1643730488598,1.08336413,2753.7,2752.9,0.41578377]
[1643730488800,1.51101907,2753.6,2752.9,0.41578377]
[1643730489098,1.08336413,2753.5,2752.9,0.41578377]
[1643730489956,1.08336413,2753.5,2753.0,0.41578377]
[1643730490148,1.08336413,2753.5,2753.1,0.41578377]
[1643730490348,1.08336413,2753.5,2752.7,0.435]
[1643730490546,1.08336413,2753.5,2752.8,0.59763599]
[1643730490746,1.08336413,2753.5,2752.9,0.41615599]
[1643730491955,1.08336413,2753.5,2752.6,0.18148]
[1643730492151,1.08336413,2753.5,2752.7,0.41617294]
[1643730495119,1.08336413,2753.5,2752.3,1.685]
[1643730495120,1.08336413,2753.5,2752.8,0.41617294]
[1643730495315,0.71648298,2753.3,2752.9,0.41617294]
[1643730495515,1.08336413,2753.2,2752.5,0.18148]
[1643730495715,1.08336413,2753.2,2752.6,0.43451018]
[1643730495716,0.40236498,2753.1,2752.6,0.43451018]
[1643730495915,1.08336413,2753.0,2752.6,0.43451018]
[1643730496315,6.50415367,2753.9,2752.6,0.43451018]
[1643730496316,0.66696297,2753.8,2752.7,0.27167283]
[1643730496516,0.66696297,2753.8,2752.7,2.75387291]
[1643730496715,0.66696297,2753.8,2753.1,0.84555138]
[1643730496917,0.66696297,2754.2,2753.1,0.84555138]
[1643730497116,0.66696297,2754.2,2753.1,0.93574421]
[1643730497321,0.66696297,2754.2,2753.2,0.18148]
[1643730497560,0.66696297,2754.2,2753.2,0.61610146]
[1643730497764,1.33286565,2754.1,2753.3,0.43462146]
[1643730497963,1.08567856,2754.0,2753.3,0.43462146]
[1643730498562,1.08567856,2754.0,2753.4,0.18148]
[1643730498762,1.08567856,2754.0,2753.5,0.43462146]
[1643730499564,1.08567856,2754.0,2753.6,0.43462146]
[1643730499763,1.08567856,2754.0,2753.2,0.435]
[1643730499963,1.08567856,2754.0,2753.3,0.48096861]
[1643730500866,0.41136524,2753.4,2753.3,0.48096861]
[1643730501066,0.1500159,2753.4,2753.3,0.48096861]
[1643730501332,0.1500159,2753.4,2753.3,0.66244861]
[1643730502430,0.1500159,2753.4,2753.3,7.06328809]
[1643730502629,0.66696297,2754.4,2753.3,7.06328809]
[1643730502829,0.66696297,2754.4,2753.4,0.48096861]
[1643730503040,1.07843486,2754.3,2753.5,4.11314424]
[1643730503235,2.00555267,2754.9,2753.6,2.15011259]
[1643730503236,1.110019,2754.9,2753.6,2.15011259]
[1643730503438,1.07432374,2754.8,2753.7,4.23306446]
[1643730503632,1.07432374,2754.8,2753.8,0.66244861]
[1643730503831,1.07432374,2754.8,2753.9,3.52622579]
[1643730503832,0.44430534,2754.7,2753.9,3.52622579]
[1643730504033,1.07432374,2754.6,2754.0,0.66244861]
[1643730504235,1.07432374,2754.6,2754.1,0.91596861]
[1643730504431,1.07432374,2754.6,2754.2,0.48096861]
[1643730504632,1.07432374,2754.6,2754.3,0.66244861]
[1643730504833,0.44430534,2754.7,2754.4,0.48096861]
[1643730505064,0.44430534,2754.7,2754.5,0.66244861]
[1643730505263,0.44430534,2754.7,2754.6,4.885]
[1643730505465,3.94407,2755.8,2754.6,4.885]
[1643730505466,0.66696297,2755.6,2755.0,0.82125526]
[1643730505673,0.00289204,2756.0,2755.1,0.61648]
[1643730505674,1.07229311,2755.5,2755.1,0.61648]
[1643730505965,1.07229311,2755.4,2755.2,0.435]
[1643730506164,0.66696297,2756.1,2755.2,0.435]
[1643730506368,0.31589119,2756.0,2755.2,0.435]
[1643730506564,1.07001106,2755.9,2755.2,0.435]
[1643730506767,1.4400229,2755.8,2755.2,0.435]
[1643730506968,1.73697403,2755.7,2754.7,1.18148]
[1643730507368,1.73697403,2755.7,2754.7,0.18148]
[1643730507571,1.07001106,2755.7,2754.7,3.35985542]
[1643730507768,0.40687643,2754.8,2754.7,3.65985542]
[1643730507968,0.40687643,2754.8,2754.7,1.38889]
[1643730508370,0.66428292,2756.0,2754.7,1.58313073]
[1643730508571,0.67238659,2755.8,2754.8,0.49424073]
[1643730508813,1.01860003,2755.7,2754.9,0.18148]
[1643730509212,1.31860003,2755.7,2754.9,0.18148]
[1643730509414,1.01860003,2755.6,2754.9,0.18148]
[1643730512458,1.01860003,2755.6,2755.0,0.90733]
[1643730513054,0.70909212,2755.9,2755.0,0.90733]
[1643730513361,0.70909212,2755.9,2754.9,2.59144926]
[1643730513362,0.70909212,2755.9,2755.2,0.72729579]
[1643730513854,0.40909212,2755.9,2755.2,0.72729579]
[1643730514156,0.40909212,2755.9,2755.3,0.61648]
[1643730514157,0.90729,2755.8,2755.3,0.61648]
[1643730514357,0.90729,2755.8,2754.9,0.18148]
[1643730514358,1.9324317,2755.8,2754.9,0.18148]
[1643730514558,1.9324317,2755.8,2754.6,2.02826536]
[1643730514559,1.0251417,2755.7,2754.6,0.18148]
[1643730514956,0.95203449,2755.5,2754.6,0.18148]
[1643730515158,1.0251417,2755.7,2754.6,0.18148]
[1643730515159,0.40869269,2755.3,2754.7,0.90741]
[1643730515360,0.40869269,2755.3,2754.7,0.435]
[1643730515661,1.02535686,2755.2,2754.5,0.53994119]
[1643730515864,1.32535686,2755.2,2754.5,0.53994119]
[1643730516057,0.40869269,2755.3,2754.5,0.53994119]
[1643730516058,0.4627605,2755.1,2754.5,0.53994119]
[1643730516305,0.9076,2755.1,2754.5,0.53994119]
[1643730516608,0.9076,2755.1,2754.5,0.72142119]
[1643730518010,0.9076,2755.1,2754.6,0.90747]
[1643730518209,0.9076,2755.1,2754.7,0.18148]
[1643730518612,0.9076,2755.1,2754.6,0.90747]
[1643730518821,0.9076,2755.1,2754.5,0.53994119]
[1643730519714,1.2076,2755.1,2754.5,0.53994119]
[1643730520754,1.2076,2755.1,2754.5,1.44745119]
[1643730521356,0.40869269,2755.3,2754.5,1.44745119]
[1643730521554,0.40869269,2755.3,2754.6,0.18148]
[1643730522556,0.90762,2755.1,2754.5,1.44745119]
[1643730522958,0.90762,2755.1,2754.5,1.62893119]
[1643730523156,1.20762,2755.1,2754.5,1.62893119]
[1643730523719,1.50762,2755.1,2754.2,2.87026]
[1643730524015,0.3,2754.3,2754.2,1.0553]
[1643730524514,0.71702466,2754.3,2754.2,1.0553]
[1643730525423,0.90796,2754.1,2753.3,1.99726]
[1643730525822,0.90796,2754.1,2752.4,0.145192]
[1643730525823,0.3,2754.0,2752.4,0.145192]
[1643730526021,0.3,2754.0,2752.4,0.326672]
[1643730526022,0.30690502,2754.0,2752.4,0.326672]
[1643730526227,5.4566767,2754.1,2752.4,0.326672]
[1643730526421,0.39100767,2752.5,2752.4,1.10639011]
[1643730526922,0.6,2753.6,2752.4,1.11884946]
[1643730526923,0.3,2753.6,2752.4,1.11884946]
[1643730527123,1.8164,2753.7,2752.5,2.35264088]
[1643730527323,0.3,2753.7,2752.7,1.816]
[1643730527563,3.6264,2754.1,2752.8,2.71756515]
[1643730527564,4.77119715,2754.1,2752.8,2.71756515]
[1643730527763,4.77119715,2754.1,2752.8,1.18148]
[1643730527963,0.90796,2753.8,2752.8,0.18148]
[1643730528169,2.29530826,2753.7,2752.4,1.053432]
[1643730528365,2.93185626,2753.7,2752.4,1.053432]
[1643730528565,2.93185626,2753.7,2752.4,0.145192]
[1643730528968,0.34279981,2753.1,2752.4,0.145192]
[1643730529168,0.94062379,2753.0,2752.4,0.145192]
[1643730529568,2.43603828,2752.9,2752.4,0.145192]
[1643730529770,2.73603828,2752.9,2752.4,0.145192]
[1643730530171,0.63923623,2752.9,2752.4,0.145192]
[1643730530470,3.36474623,2752.9,2752.4,0.145192]
[1643730531077,5.48704433,2752.9,2752.4,0.145192]
[1643730531345,4.85,2752.8,2751.8,0.1]
[1643730531540,0.90873,2752.6,2750.9,0.85594852]
[1643730531736,0.90873,2752.6,2750.9,0.18148]
[1643730531737,3.53727621,2752.5,2750.9,0.18148]
[1643730531949,1.85361691,2752.2,2750.8,0.29562169]
[1643730532136,0.33512202,2751.5,2750.8,0.2834]
[1643730532436,0.90893,2751.4,2750.8,0.2834]
[1643730532833,1.54852519,2751.4,2750.8,0.2834]
[1643730533234,1.24852519,2751.4,2750.8,0.2834]
[1643730533638,1.20893,2751.4,2750.8,0.2834]
[1643730533838,1.50893,2751.4,2750.8,0.2834]
[1643730534134,1.54830335,2751.4,2750.8,0.2834]
[1643730535959,2.23032001,2751.3,2750.8,0.2834]
[1643730536963,0.6,2751.3,2750.8,0.2834]
[1643730537165,0.33512202,2751.5,2750.9,0.18148]
[1643730537564,0.32121809,2751.5,2750.9,0.18148]
[1643730537964,0.32121809,2751.5,2751.0,0.92851403]
[1643730538164,0.32121809,2751.5,2751.1,0.18148]
[1643730538364,0.32121809,2751.5,2751.1,4.36596326]
[1643730538565,0.32121809,2751.5,2751.1,0.18148]
[1643730538812,0.32121809,2751.5,2750.9,0.18148]
[1643730539212,0.35903735,2751.5,2750.6,0.435]
[1643730539407,0.35903735,2751.5,2750.5,1.9989]
[1643730539608,1.09382819,2751.5,2750.6,0.54560543]
[1643730539811,1.8175,2751.9,2750.8,0.9087]
[1643730540012,2.72668,2752.3,2750.9,1.54560542]
[1643730540210,2.76339879,2752.3,2751.0,0.54560543]
[1643730540415,1.1911,2752.9,2751.2,0.01264728]
[1643730540416,0.9085,2752.4,2751.2,0.01264728]
[1643730540616,14.9137,2753.1,2751.2,0.01264728]
[1643730540617,1.2079,2753.5,2751.3,1.16208543]
[1643730540814,1.2079,2753.5,2752.3,1.0]
[1643730541026,1.2079,2753.5,2752.4,1.08964]
[1643730541421,0.03641523,2753.6,2752.4,1.08964]
[1643730541725,5.3529,2753.8,2752.4,1.08964]
[1643730541919,0.34795587,2752.6,2752.4,1.08964]
[1643730542566,2.67846977,2753.7,2752.5,4.46648]
[1643730542567,1.81632,2753.7,2752.5,4.46648]
[1643730542769,0.03824554,2754.1,2752.9,0.90794]
[1643730542964,0.01235076,2754.5,2752.9,0.02363241]
[1643730543165,0.01235076,2754.5,2753.0,0.61648]
[1643730543364,0.03946033,2754.6,2753.0,0.61648]
[1643730543567,0.38454112,2753.2,2753.0,0.61648]
[1643730543767,3.43149049,2754.8,2753.5,0.00574501]
[1643730543768,0.90794,2754.2,2753.5,0.00574501]
[1643730543965,3.43149049,2754.8,2753.5,0.00574501]
[1643730543966,1.23124784,2754.8,2753.6,0.18148]
[1643730544168,6.33458099,2755.1,2753.6,0.18148]
[1643730544371,0.95234653,2755.0,2753.6,0.18148]
[1643730544569,6.35335313,2755.1,2753.7,0.44906223]
[1643730544767,0.39558822,2753.9,2753.8,0.18148]
[1643730545369,0.39558822,2753.9,2753.7,1.34274]
[1643730545675,0.39558822,2753.9,2753.7,0.435]
[1643730545871,0.39558822,2753.9,2753.6,0.18148]
[1643730546316,1.81599,2754.2,2753.5,0.18148]
[1643730546518,2.76700966,2755.0,2753.5,0.18148]
[1643730546519,2.76700966,2755.0,2753.6,1.81538]
[1643730546714,3.02373,2755.0,2753.6,1.81538]